fUSD/lending_fUSD_20251117
["ID","MTS","AMOUNT","RATE_DAILY","PERIOD"]
[394237314,1763399325009,-856.63,0.000478,30]
[394237315,1763399325053,-511.36296125,0.0004788,100]
[394237316,1763399325094,-153.0,0.000479,120]
[394237317,1763399325134,-1000.0,0.00047945,30]
[394237318,1763399325172,-5075.06696,0.00047988,30]
[394237319,1763399325210,-50000.0,0.00048,48]
[394237320,1763399325251,-500.0,0.00048,120]
[394237321,1763399325290,-15000.0,0.00048,120]
[394237322,1763399325330,-1788.51038733,0.00048,120]
[394237323,1763399325369,-425.09760971,0.00048,120]
[394237324,1763399325408,-282.02393022,0.00048,120]
[394237325,1763399325444,-212.29310918,0.00048,120]
[394237326,1763399325482,-32425.2,0.00048,120]
[394237327,1763399325520,-300.0,0.00048,120]
[394237328,1763399325558,-1259.5585,0.00048,120]
[394237329,1763399325595,-150.0,0.00048,120]
[394237330,1763399325631,-100000.000998,0.00048,30]
[394237331,1763399325667,-7483.36469295,0.00048,120]
[394237332,1763399325706,-466.3385552,0.00048,120]
[394237333,1763399325750,-589.07323322,0.00048,120]
[394237334,1763399325788,-150.0,0.00048,120]
[394237335,1763399325828,-150.0,0.00048,120]
[394237336,1763399325868,-150.0,0.00048,120]
[394237337,1763399325910,-500.0,0.00048,120]
[394237338,1763399325952,-579.37,0.00048041,30]
[394237339,1763399325991,-579.37,0.00048041,30]
[394237340,1763399326030,-151.0,0.00048133,120]
[394237341,1763399326071,-2158474.81251425,0.00048136,120]
[394237416,1763399432422,-300.0,0.00019,2]
[394237420,1763399432434,-772.61052027,0.00019,2]
[394237423,1763399432443,-195.0,0.00019232,2]
[394237426,1763399432453,-250.0,0.00019463,2]
[394237429,1763399432462,-219.61496451,0.00019927,2]
[394237432,1763399432474,-108.01503549,0.00019927,2]
[394237435,1763399432484,-163.02218951,0.00020187,2]
[394237438,1763399432498,-26.51781049,0.00020187,2]
[394237441,1763399432508,-304.17315594,0.00020391,2]
[394237445,1763399432517,-153.42180857,0.000209,2]
[394237449,1763399432529,-96.57819143,0.000209,2]
[394237452,1763399432538,-195.0,0.000209,2]
[394237455,1763399432547,-327.63,0.00020923,2]
[394237458,1763399432557,-23.69390857,0.0002192,2]
[394237461,1763399432568,-303.93609143,0.0002192,2]
[394237464,1763399432578,-72.42390857,0.00022914,2]
[394237467,1763399432590,-227.57609143,0.00022914,2]
[394237470,1763399432599,-1200.0,0.00022914,2]
[394237473,1763399432608,-300.0,0.00022914,2]
[394237476,1763399432617,-300.0,0.00022914,2]
[394237479,1763399432627,-1000.0,0.00022915,2]
[394237482,1763399432637,-1485.0,0.00022915,2]
[394237485,1763399432646,-327.63,0.00022916,2]
[394237487,1763399432656,-150.99,0.00022916,2]
[394237489,1763399432666,-8552.917237,0.00022916,2]
[394237492,1763399432678,-6730.812763,0.00022916,2]
[394237494,1763399432692,-4826.04,0.00022916,2]
[394237496,1763399432702,-7671.1,0.00022916,2]
[394237499,1763399432721,-3093.34,0.00022916,2]
[394237501,1763399432732,-9999.99,0.00022916,2]
[394237502,1763399432742,-526.49,0.00022916,2]
[394237503,1763399432752,-223.04593126,0.00022973,2]
[394237504,1763399432762,-500.0,0.00023,2]
[394237505,1763399432771,-526.49,0.0002319,2]
[394237506,1763399432781,-526.49,0.00023464,2]
[394237507,1763399432790,-526.49,0.00023738,2]
[394237508,1763399432800,-327.63,0.00023912,2]
[394237509,1763399432809,-526.5,0.00024012,2]
[394237510,1763399432818,-420.0,0.00024877,2]
[394237511,1763399432828,-420.0,0.00024877,2]
[394237512,1763399432838,-420.0,0.00024877,2]
[394237513,1763399432847,-327.63,0.00024909,2]
[394237514,1763399432858,-1680.0,0.00024992,2]
[394237515,1763399432867,-525.09741535,0.00025745,3]
[394237516,1763399432876,-327.63,0.00025905,2]
[394237517,1763399432886,-189.54,0.00026676,2]
[394237518,1763399432895,-327.63,0.00026901,2]
[394237519,1763399432905,-587.0,0.00027007,2]
[394237520,1763399432914,-348.0,0.00027007,2]
[394237521,1763399432924,-1252.0,0.00027259,2]
[394237522,1763399432936,-327.63,0.00027898,2]
[394237523,1763399432945,-315.0,0.00028759,2]
[394237524,1763399432955,-151.0,0.00028876,2]
[394237525,1763399432964,-151.0,0.00028876,2]
[394237526,1763399432974,-151.0,0.00028876,2]
[394237527,1763399432984,-151.0,0.00028876,2]
[394237528,1763399432994,-151.0,0.00028876,2]
[394237529,1763399433003,-151.0,0.00028876,2]
[394237530,1763399433013,-151.0,0.00028876,2]
[394237531,1763399433022,-327.63,0.00028894,2]
[394237532,1763399433031,-734.0,0.00029321,2]
[394237533,1763399433041,-327.63,0.0002989,2]
[394237534,1763399433051,-327.63,0.00030887,2]
[394237535,1763399433060,-327.63,0.00031883,2]
[394237536,1763399433070,-99.76602604,0.00032183,2]
[394237541,1763399438357,-900.23397396,0.00032183,2]
[394237542,1763399438367,-327.63,0.0003288,2]
[394237543,1763399438376,-189.54,0.00033165,2]
[394237544,1763399438386,-500.0,0.0003327,2]
[394237545,1763399438396,-200.0,0.00033476,2]
[394237546,1763399438406,-153.75,0.00033496,120]
[394237547,1763399438415,-237.51,0.00033531,2]
[394237548,1763399438425,-183.09,0.00033793,2]
[394237549,1763399438434,-150.0,0.00033793,2]
[394237550,1763399438446,-327.63,0.00033876,2]
[394237551,1763399438457,-896.35,0.00033894,2]
[394237552,1763399438466,-327.63,0.00034872,2]
[394237553,1763399438477,-150.0,0.0003521,2]
[394237554,1763399438486,-327.63,0.00035869,2]
[394237555,1763399438496,-500.0,0.00035879,2]
[394237556,1763399438506,-1009.82,0.00036,2]
[394237557,1763399438516,-6777.7,0.00036303,2]
[394237558,1763399438526,-223.18,0.00036303,2]
[394237559,1763399438536,-22808.9,0.00036303,2]
[394237560,1763399438546,-150.0,0.0003658,2]
[394237561,1763399438556,-1009.82,0.0003672,2]
[394237562,1763399438566,-327.63,0.00036865,2]
[394237563,1763399438576,-688.74,0.00036899,5]
[394237564,1763399438586,-500.0,0.000369,2]
[394237565,1763399438595,-1186.0,0.00037,2]
[394237566,1763399438606,-181.61613088,0.000372,120]
[394237567,1763399438615,-172.0,0.00037222,2]
[394237568,1763399438625,-150.0,0.00037282,7]
[394237569,1763399438635,-150.0,0.00037282,7]
[394237570,1763399438645,-150.0,0.00037282,7]
[394237571,1763399438654,-150.0,0.00037282,7]
[394237574,1763399438664,-150.0,0.00037282,7]
[394237576,1763399438674,-150.0,0.00037282,7]
[394237578,1763399438684,-150.0,0.00037282,7]
[394237580,1763399438698,-150.0,0.00037282,7]
[394237582,1763399438707,-500.0,0.00037315,2]
[394237584,1763399438717,-1009.82,0.0003744,2]
[394237586,1763399438727,-150.0,0.00037526,7]
[394237588,1763399438736,-500.0,0.00037592,2]
[394237590,1763399438745,-454.808,0.00037595,2]
[394237592,1763399438755,-793.111,0.00037595,2]
[394237594,1763399438764,-150.0,0.00037696,7]
[394237596,1763399438774,-150.0,0.0003777,7]
[394237598,1763399438784,-150.0,0.000378,7]
[394237600,1763399438794,-150.0,0.000378,7]
[394237602,1763399438804,-327.63,0.00037861,2]
[394237604,1763399438814,-150.0,0.00037874,7]
[394237606,1763399438823,-150.0,0.00037876,2]
[394237608,1763399438832,-2000.0,0.00038,2]
[394237610,1763399438842,-150.0,0.00038013,7]
[394237612,1763399438852,-150.0,0.00038111,7]
[394237614,1763399438861,-150.0,0.00038111,7]
[394237616,1763399438871,-234.7706,0.00038145,2]
[394237618,1763399438882,-500.0,0.00038206,2]
[394237620,1763399438891,-145.42435838,0.00038244,2]
[394237622,1763399438902,-2720.0,0.00038245,7]
[394237624,1763399438912,-150.0,0.00038257,7]
[394237626,1763399438922,-564.59194382,0.00038273,5]
[394237628,1763399438932,-500.0,0.00038273,5]
[394237630,1763399438944,-151.0,0.00038314,6]
[394237632,1763399438954,-162.71,0.00038316,2]
[394237635,1763399438966,-150.0,0.00038318,7]
[394237637,1763399438977,-150.0,0.00038318,7]
[394237639,1763399438987,-150.64830389,0.00038356,5]
[394237641,1763399438997,-5888.0,0.00038459,2]
[394237643,1763399439007,-150.0,0.00038466,7]
[394237645,1763399439016,-150.0,0.00038501,7]
[394237647,1763399439026,-500.0,0.00038518,2]
[394237649,1763399439035,-150.0,0.00038525,7]
[394237651,1763399439046,-4075.8433,0.000386,2]
[394237653,1763399439056,-52004.5912,0.000386,2]
[394237655,1763399439066,-900.0,0.000387,2]
[394237657,1763399439076,-150.0,0.00038744,7]
[394237659,1763399439086,-2718.0,0.00038753,2]
[394237661,1763399439095,-900.0,0.00038761,2]
[394237663,1763399439105,-900.0,0.00038761,2]
[394237665,1763399439115,-500.0,0.00038792,2]
[394237667,1763399439125,-400.0,0.000388,14]
[394237669,1763399439138,-150.0,0.00038836,7]
[394237671,1763399439149,-150.0,0.00038836,7]
[394237673,1763399439159,-900.0,0.00038861,2]
[394237675,1763399439168,-900.0,0.00038861,4]
[394237677,1763399439177,-900.0,0.00038861,2]
[394237679,1763399439187,-800.0,0.000389,14]
[394237698,1763399439452,-8154.0,0.00038939,5]
[394237701,1763399439473,-150.0,0.00038939,7]
[394237703,1763399439483,-150.0,0.00038939,7]
[394237705,1763399439491,-900.0,0.00038961,2]
[394237707,1763399439501,-900.0,0.00038961,2]
[394237709,1763399439510,-900.0,0.00038961,2]
[394237711,1763399439519,-150.0,0.00038988,7]
[394237713,1763399439529,-170.07,0.0003899,2]
[394237715,1763399439538,-3618.0,0.00039,5]
[394237717,1763399439548,-150.0,0.00039058,7]
[394237719,1763399439557,-900.0,0.00039061,2]
[394237721,1763399439567,-162.64827273,0.00039066,2]
[394237723,1763399439576,-900.0,0.00039161,2]
[394237725,1763399439585,-905.64361222,0.00039161,5]
[394237727,1763399439596,-900.0,0.00039161,2]
[394237729,1763399439605,-2319.43805384,0.000392,2]
[394237731,1763399439614,-150.0,0.00039232,7]
[394237733,1763399439623,-315.0,0.00039234,2]
[394237735,1763399439632,-900.0,0.00039261,2]
[394237737,1763399439641,-1243.5925,0.00039261,2]
[394237739,1763399439651,-10392.34978176,0.00039284,2]
[394237741,1763399439661,-5888.0,0.00039311,2]
[394237743,1763399439670,-150.0,0.00039353,7]
[394237745,1763399439679,-150.0,0.00039353,7]
[394237747,1763399439690,-150.0,0.00039353,7]
[394237749,1763399439699,-150.0,0.00039353,7]
[394237751,1763399439708,-900.0,0.00039361,2]
[394237753,1763399439718,-900.0,0.00039361,3]
[394237755,1763399439727,-12862.48669638,0.00039375,2]
[394237757,1763399439736,-238.5013821,0.00039375,2]
[394237759,1763399439746,-158.28372569,0.00039384,15]
[394237761,1763399439755,-3011.9463,0.00039384,2]
[394237763,1763399439764,-2500.0,0.00039384,2]
[394237765,1763399439773,-459.64686874,0.00039403,2]
[394237766,1763399439782,-150.0,0.00039411,7]
[394237769,1763399439792,-150.0,0.00039411,7]
[394237771,1763399439801,-900.0,0.00039461,2]
[394237773,1763399439811,-900.0,0.00039461,2]
[394237775,1763399439820,-500.0,0.00039472,2]
[394237776,1763399439829,-500.0,0.00039473,5]
[394237779,1763399439839,-150.0,0.00039473,5]
[394237781,1763399439848,-500.0,0.00039473,5]
[394237783,1763399439858,-500.0,0.00039473,5]
[394237785,1763399439867,-160.77470551,0.00039473,5]
[394237787,1763399439877,-502.06530095,0.00039473,5]
[394237789,1763399439887,-500.0,0.00039473,5]
[394237791,1763399439898,-500.0,0.00039473,5]
[394237793,1763399439907,-500.0,0.00039473,5]
[394237795,1763399439918,-162.67023792,0.00039473,5]
[394237797,1763399439928,-500.0,0.00039473,5]
[394237799,1763399439939,-500.0,0.00039473,5]
[394237801,1763399439949,-500.0,0.00039473,5]
[394237803,1763399439959,-500.0,0.00039473,5]
[394237805,1763399439969,-500.0,0.00039473,5]
[394237807,1763399439979,-500.0,0.00039473,5]
[394237809,1763399439989,-142757.792888,0.00039474,4]
[394237811,1763399440002,-150.0,0.00039475,7]
[394237813,1763399440017,-367091.467426,0.00039484,4]
[394237815,1763399440027,-282.86964758,0.00039484,2]
[394237817,1763399440037,-500.0,0.00039493,7]
[394237819,1763399440048,-500.0,0.00039493,7]
[394237821,1763399440058,-500.0,0.00039493,7]
[394237823,1763399440068,-488.0,0.00039493,7]
[394237825,1763399440079,-500.0,0.00039493,2]
[394237828,1763399440090,-500.0,0.00039493,2]
[394237830,1763399440100,-500.0,0.00039493,2]
[394237832,1763399440110,-300.0,0.00039493,2]
[394237835,1763399440120,-337.68888476,0.00039493,2]
[394237837,1763399440129,-525.92146982,0.00039493,30]
[394237838,1763399440138,-760000.0,0.00039494,2]
[394237839,1763399440148,-253.02,0.000395,30]
[394237840,1763399440158,-162.71,0.00039503,2]
[394237841,1763399440169,-10392.34978167,0.00039514,2]
[394237842,1763399440178,-20393.9704126,0.00039542,4]
[394237843,1763399440188,-900.0,0.0003956,2]
[394237844,1763399440201,-900.0,0.0003956,4]
[394237845,1763399440211,-319.96,0.00039562,2]
[394237846,1763399440220,-1400.78,0.00039562,2]
[394237847,1763399440230,-700.23,0.00039562,2]
[394237848,1763399440238,-20393.9704126,0.00039584,4]
[394237849,1763399440248,-2720.0,0.00039594,2]
[394237850,1763399440265,-12862.48669633,0.00039595,2]
[394237851,1763399440275,-150.0,0.00039649,7]
[394237852,1763399440285,-189.54,0.00039654,2]
[394237853,1763399440294,-238.50138204,0.00039658,2]
[394237854,1763399440305,-900.0,0.0003966,2]
[394237855,1763399440315,-900.0,0.0003966,4]
[394237856,1763399440325,-900.0,0.0003966,2]
[394237857,1763399440335,-900.0,0.0003966,2]
[394237858,1763399440345,-158.28372563,0.00039712,15]
[394237859,1763399440354,-150.0,0.00039719,7]
[394237860,1763399440363,-459.64686869,0.00039728,2]
[394237861,1763399440372,-10392.34978167,0.00039744,2]
[394237862,1763399440381,-900.0,0.0003976,2]
[394237863,1763399440390,-900.0,0.0003976,2]
[394237864,1763399440400,-500.0,0.00039767,2]
[394237865,1763399440409,-500.0,0.00039767,2]
[394237866,1763399440418,-150.0,0.00039768,7]
[394237867,1763399440428,-150.0,0.00039768,7]
[394237868,1763399440437,-20393.9704126,0.00039802,4]
[394237869,1763399440450,-12862.48669633,0.00039815,2]
[394237870,1763399440459,-20393.9704126,0.0003983,4]
[394237871,1763399440469,-155.98,0.00039836,2]
[394237872,1763399440478,-177.35,0.00039836,2]
[394237873,1763399440487,-832.93,0.00039836,2]
[394237874,1763399440495,-175.95,0.00039836,2]
[394237875,1763399440504,-369.99,0.00039836,2]
[394237876,1763399440513,-150.0,0.00039836,2]
[394237877,1763399440522,-177.35,0.00039836,2]
[394237878,1763399440531,-833.56,0.00039836,2]
[394237879,1763399440540,-338.9,0.00039836,2]
[394237880,1763399440549,-177.35,0.00039836,2]
[394237881,1763399440558,-169.45,0.00039836,2]
[394237882,1763399440567,-150.0,0.00039836,2]
[394237883,1763399440576,-177.35,0.00039836,2]
[394237884,1763399440585,-169.45,0.00039836,2]
[394237885,1763399440599,-177.35,0.00039836,2]
[394237886,1763399440608,-169.45,0.00039836,2]
[394237887,1763399440616,-150.0,0.00039836,2]
[394237888,1763399440626,-300.0,0.00039836,2]
[394237889,1763399440635,-177.32,0.00039836,2]
[394237890,1763399440644,-150.0,0.00039836,2]
[394237891,1763399440654,-150.0,0.00039836,2]
[394237892,1763399440663,-198.0,0.00039836,2]
[394237893,1763399440672,-150.0,0.00039836,2]
[394237894,1763399440681,-150.0,0.00039836,2]
[394237895,1763399440692,-150.0,0.00039836,2]
[394237896,1763399440701,-150.0,0.00039836,2]
[394237897,1763399440710,-150.0,0.00039836,2]
[394237898,1763399440720,-150.0,0.00039836,2]
[394237899,1763399440729,-150.0,0.00039836,2]
[394237900,1763399440738,-150.0,0.00039836,2]
[394237901,1763399440748,-150.0,0.00039836,2]
[394237902,1763399440757,-20393.9704126,0.0003984,4]
[394237903,1763399440766,-900.0,0.0003986,2]
[394237904,1763399440774,-900.0,0.0003986,2]
[394237905,1763399440784,-150.0,0.00039871,7]
[394237906,1763399440793,-150.0,0.00039871,7]
[394237907,1763399440802,-501.95355844,0.00039873,5]
[394237908,1763399440812,-166.8981823,0.00039873,5]
[394237909,1763399440821,-500.0,0.00039873,5]
[394237910,1763399440830,-500.0,0.00039873,5]
[394237911,1763399440840,-161.06747613,0.00039873,5]
[394237912,1763399440850,-500.0,0.00039873,5]
[394237913,1763399440860,-500.0,0.00039873,5]
[394237914,1763399440869,-578.15374022,0.00039873,5]
[394237915,1763399440878,-500.0,0.00039873,5]
[394237916,1763399440888,-500.0,0.00039873,5]
[394237917,1763399440898,-500.0,0.00039873,5]
[394237918,1763399440909,-503.32747912,0.00039873,5]
[394237919,1763399440919,-500.0,0.00039873,5]
[394237920,1763399440928,-500.0,0.00039873,5]
[394237921,1763399440938,-500.0,0.00039873,5]
[394237922,1763399440953,-500.0,0.00039873,5]
[394237923,1763399440963,-200.0,0.00039873,5]
[394237924,1763399440972,-500.0,0.00039873,5]
[394237925,1763399440982,-500.0,0.00039873,5]
[394237926,1763399440994,-500.0,0.00039873,5]
[394237927,1763399441005,-500.0,0.00039873,5]
[394237928,1763399441015,-500.91557619,0.00039873,5]
[394237929,1763399441024,-599.95401361,0.00039873,5]
[394237930,1763399441034,-518.75704326,0.00039873,5]
[394237931,1763399441044,-501.8690547,0.00039873,5]
[394237932,1763399441054,-500.0,0.00039873,5]
[394237933,1763399441064,-500.0,0.00039873,5]
[394237934,1763399441073,-500.0,0.00039873,5]
[394237935,1763399441083,-501.34785536,0.00039873,5]
[394237936,1763399441093,-258.78172801,0.0003988,2]
[394237937,1763399441102,-1000.0,0.0003989,2]
[394237938,1763399441112,-33327.7153,0.0003989,2]
[394237939,1763399441122,-1200.0,0.000399,14]
[394237940,1763399441132,-1815.0,0.000399,7]
[394237941,1763399441141,-238.50138204,0.0003994,2]
[394237942,1763399441151,-315.0,0.00039951,2]
[394237943,1763399441160,-900.0,0.0003996,2]
[394237944,1763399441170,-900.0,0.0003996,3]
[394237945,1763399441180,-900.0,0.0003996,5]
[394237946,1763399441194,-900.0,0.0003996,2]
[394237947,1763399441203,-150.0,0.00039963,7]
[394237948,1763399441212,-10392.34978167,0.00039973,15]
[394237949,1763399441222,-500.0,0.00039989,7]
[394237950,1763399441232,-241.46180193,0.0004,2]
[394237951,1763399441242,-5000.0,0.0004,15]
[394237952,1763399441251,-194.0,0.0004,2]
[394237953,1763399441265,-151.0,0.00040007,7]
[394237954,1763399441275,-2718.0,0.00040015,7]
[394237955,1763399441285,-628.78917675,0.00040021,5]
[394237956,1763399441295,-150.72602275,0.00040021,5]
[394237957,1763399441306,-500.0,0.00040021,5]
[394237958,1763399441315,-500.0,0.00040021,5]
[394237959,1763399441324,-385.96078134,0.00040021,5]
[394237960,1763399441335,-327.46178706,0.00040021,5]
[394237961,1763399441344,-1000.0,0.00040021,5]
[394237962,1763399441353,-1000.0,0.00040021,5]
[394237963,1763399441363,-1000.0,0.00040021,5]
[394237964,1763399441372,-184.18282033,0.00040021,5]
[394237965,1763399441381,-12862.48669633,0.00040034,15]
[394237966,1763399441391,-158.28372563,0.0004004,15]
[394237967,1763399441401,-500.0,0.00040041,2]
[394237968,1763399441410,-500.0,0.00040041,2]
[394237969,1763399441420,-459.64686869,0.00040053,2]
[394237970,1763399441429,-900.0,0.0004006,2]
[394237971,1763399441439,-900.0,0.0004006,2]
[394237972,1763399441452,-900.0,0.0004016,2]
[394237973,1763399441462,-900.0,0.0004016,2]
[394237974,1763399441472,-150.0,0.00040182,7]
[394237975,1763399441481,-1600.0,0.000402,14]
[394237976,1763399441491,-10392.34978167,0.00040203,15]
[394237977,1763399441500,-150.0,0.00040206,7]
[394237978,1763399441510,-238.50138204,0.00040223,28]
[394237979,1763399441519,-2718.0,0.00040229,2]
[394237980,1763399441530,-150.0,0.00040241,7]
[394237981,1763399441539,-12862.48669633,0.00040254,15]
[394237982,1763399441549,-900.0,0.0004026,4]
[394237983,1763399441559,-2100.0,0.000403,14]
[394237984,1763399441568,-199.0,0.00040315,8]
[394237985,1763399441577,-500.0,0.00040315,2]
[394237986,1763399441587,-500.0,0.00040315,2]
[394237987,1763399441596,-900.0,0.0004036,2]
[394237988,1763399441606,-158.28372563,0.00040369,15]
[394237989,1763399441615,-459.64686869,0.00040378,2]
[394237990,1763399441624,-150.0,0.00040389,7]
[394237991,1763399441634,-150.0,0.00040389,7]
[394237992,1763399441644,-400.0,0.000404,14]
[394237993,1763399441654,-500.0,0.00040421,5]
[394237994,1763399441663,-500.0,0.00040421,5]
[394237995,1763399441673,-500.0,0.00040421,5]
[394237996,1763399441683,-500.0,0.00040421,5]
[394237997,1763399441695,-500.0,0.00040421,5]
[394237998,1763399441704,-500.0,0.00040421,5]
[394237999,1763399441713,-502.02471648,0.00040421,5]
[394238000,1763399441723,-500.0,0.00040421,5]
[394238001,1763399441732,-1000.0,0.00040421,5]
[394238002,1763399441741,-1000.0,0.00040421,5]
[394238003,1763399441750,-1000.0,0.00040421,5]
[394238004,1763399441759,-1000.0,0.00040421,5]
[394238005,1763399441768,-1000.0,0.00040421,5]
[394238006,1763399441778,-421.93128195,0.00040421,5]
[394238007,1763399441791,-10392.34978167,0.00040433,15]
[394238008,1763399441806,-150.0,0.0004045,7]
[394238009,1763399441815,-900.0,0.0004046,2]
[394238010,1763399441824,-900.0,0.0004046,4]
[394238011,1763399441834,-900.0,0.0004046,5]
[394238012,1763399441843,-900.0,0.0004046,2]
[394238013,1763399441853,-12862.48669633,0.00040474,15]
[394238014,1763399441862,-400.0,0.000405,14]
[394238015,1763399441871,-238.50138204,0.00040505,28]
[394238016,1763399441880,-2718.0,0.00040529,7]
[394238017,1763399441890,-400.0,0.00040558,5]
[394238018,1763399441899,-900.0,0.00040559,2]
[394238019,1763399441909,-900.0,0.00040559,5]
[394238020,1763399441918,-900.0,0.00040559,2]
[394238021,1763399441927,-1259.58284128,0.00040568,5]
[394238022,1763399441937,-1500.0,0.00040568,5]
[394238023,1763399441950,-1500.0,0.00040568,5]
[394238024,1763399441960,-152.0,0.00040588,3]
[394238025,1763399441970,-500.0,0.00040589,2]
[394238026,1763399441979,-200.9225493,0.00040589,2]
[394238027,1763399441988,-150.0,0.00040596,7]
[394238028,1763399441998,-150.0,0.00040596,7]
[394238029,1763399442007,-400.0,0.000406,14]
[394238030,1763399442017,-253.02,0.000406,30]
[394238031,1763399442027,-2500.0,0.0004065,14]
[394238032,1763399442036,-500.0,0.00040657,7]
[394238033,1763399442046,-286.66,0.00040658,2]
[394238034,1763399442055,-150.0,0.00040658,2]
[394238035,1763399442064,-150.0,0.00040658,2]
[394238036,1763399442074,-150.0,0.00040658,2]
[394238037,1763399442084,-150.0,0.00040658,2]
[394238038,1763399442093,-150.0,0.00040658,2]
[394238039,1763399442104,-300.0,0.00040658,2]
[394238040,1763399442114,-2500.0,0.00040659,14]
[394238041,1763399442124,-900.0,0.00040659,2]
[394238042,1763399442133,-900.0,0.00040659,4]
[394238043,1763399442143,-900.0,0.00040659,2]
[394238044,1763399442153,-10392.34978167,0.00040663,15]
[394238045,1763399442162,-2500.0,0.00040667,14]
[394238046,1763399442171,-2500.0,0.00040676,14]
[394238047,1763399442181,-2500.0,0.00040685,14]
[394238048,1763399442191,-162.71,0.00040689,2]
[394238049,1763399442201,-150.0,0.00040694,7]
[394238050,1763399442210,-12862.48669633,0.00040694,15]
[394238051,1763399442219,-158.28372563,0.00040697,15]
[394238052,1763399442229,-1186.3282288,0.000407,2]
[394238053,1763399442239,-400.0,0.000407,14]
[394238054,1763399442249,-459.64686869,0.00040703,2]
[394238055,1763399442262,-175.0,0.00040748,14]
[394238056,1763399442272,-900.0,0.00040759,2]
[394238057,1763399442281,-1040.75267728,0.00040759,2]
[394238058,1763399442291,-1000.0,0.00040784,2]
[394238059,1763399442302,-238.50138204,0.00040788,28]
[394238060,1763399442311,-772.0,0.000408,14]
[394238061,1763399442320,-203.108012,0.000408,20]
[394238062,1763399442329,-175.0,0.00040828,14]
[394238063,1763399442342,-150.0,0.00040833,7]
[394238064,1763399442352,-900.0,0.00040859,2]
[394238065,1763399442360,-900.0,0.00040859,7]
[394238066,1763399442370,-900.0,0.00040859,2]
[394238067,1763399442379,-900.0,0.00040859,2]
[394238068,1763399442389,-500.0,0.00040863,2]
[394238069,1763399442399,-10392.34978167,0.00040892,15]
[394238070,1763399442408,-150.0,0.000409,30]
[394238071,1763399442417,-3971.35161452,0.000409,30]
[394238072,1763399442427,-150.0,0.000409,30]
[394238073,1763399442437,-454.95652902,0.000409,30]
[394238074,1763399442449,-150.0,0.00040907,7]
[394238075,1763399442459,-150.0,0.00040907,7]
[394238076,1763399442468,-175.0,0.00040909,14]
[394238077,1763399442478,-12862.48669633,0.00040913,15]
[394238078,1763399442488,-150.0,0.00040937,7]
[394238079,1763399442497,-900.0,0.00040959,2]
[394238080,1763399442506,-900.0,0.00040959,5]
[394238081,1763399442516,-1236.73335801,0.00040968,5]
[394238082,1763399442526,-1028.43500418,0.00040968,5]
[394238083,1763399442535,-1018.07329088,0.00040968,5]
[394238084,1763399442545,-1500.0,0.00040968,5]
[394238085,1763399442554,-303.68058232,0.00040968,5]
[394238086,1763399442564,-500.0,0.0004097,7]
[394238087,1763399442574,-500.0,0.00040989,7]
[394238088,1763399442583,-500.0,0.00040999,7]
[394238089,1763399442593,-500.0,0.00040999,7]
[394238090,1763399442602,-150.0,0.0004101,7]
[394238091,1763399442611,-158.28372563,0.00041025,15]